[Event "1000GM Schev-G3 March 2024"]
[Site "Santa Clara"]
[Date "2024.03.10"]
[Round "4.4"]
[White "Liu, Patrick"]
[Black "Zuluaga Mancilla, Cesar"]
[Result "1/2-1/2"]
[ECO "D93"]
[WhiteElo "2068"]
[BlackElo "2217"]
[Annotator "RC"]
[PlyCount "117"]
[EventDate "2024.03.06"]
[EventType "schev"]
[EventCountry "USA"]
[SourceTitle "playchess.com"]
[Source "ChessBase"]
[SourceQuality "1"]
[TimeControl "5400+30"]

1. d4 {[%emt 0:00:01]} d5 {[%emt 0:09:40]} 2. Nf3 {[%emt 0:00:03]} Nf6 {[%emt 0:00:12]} 3. c4 {[%emt 0:00:02]} c6 {[%emt 0:00:05]} 4. Qc2 {[%emt 0:00:39]} g6 {[%emt 0:01:35]} 5. Bf4 {[%emt 0:01:33]} Bg7 {[%emt 0:00:15]} 6. e3 {[%emt 0:01:03]} O-O {[%emt 0:00:06]} 7. Nc3 {[%emt 0:00:41]} Nbd7 {[%emt 0:00:21]} 8. h3 {[%emt 0:01:11]} Nb6 {[%emt 0:02:41]} 9. cxd5 {[%emt 0:05:23]} Nbxd5 {[%emt 0:00:42]} 10. Be5 {[%emt 0:02:00]} Bf5 {[%emt 0:04:33]} 11. Qb3 {[%emt 0:11:44]} Qb6 {[%emt 0:00:10]} 12. Qxb6 {[%emt 0:00:10]} axb6 {[%emt 0:00:21]} 13. Nxd5 {[%emt 0:00:33]} Nxd5 {[%emt 0:00:34]} 14. Bxg7 {[%emt 0:00:30]} Kxg7 {[%emt 0:00:07]} 15. Bc4 {[%emt 0:00:22]} Nb4 {[%emt 0:01:06]} 16. O-O {[%emt 0:02:29]} Bd3 {[%emt 0:02:08]} 17. Bxd3 {[%emt 0:00:39]} Nxd3 {[%emt 0:00:07]} 18. b3 {[%emt 0:02:33]} Ra3 {[%emt 0:01:16]} 19. Ne5 {[%emt 0:21:23]} Nxe5 {[%emt 0:04:27]} 20. dxe5 {[%emt 0:00:02]} Rfa8 {[%emt 0:07:47]} 21. Rad1 {[%emt 0:03:10]} e6 {[%emt 0:01:31]} 22. Rd7 {[%emt 0:01:06]} R8a7 {[%emt 0:01:54]} 23. Ra1 {[%emt 0:00:49]} b5 {[%emt 0:02:04]} 24. Rc7 {[%emt 0:02:58]} Rxa2 {[%emt 0:02:42]} 25. Rxa2 {[%emt 0:00:40]} Rxa2 {[%emt 0:00:06]} 26. Rxb7 {[%emt 0:00:06]} Rc2 {[%emt 0:03:29]} 27. b4 {[%emt 0:01:00]} Kf8 {[%emt 0:00:28]} 28. g4 {[%emt 0:04:10]} Rc4 {[%emt 0:04:22]} 29. Rc7 {[%emt 0:02:27]} h5 {[%emt 0:00:42]} 30. f3 {[%emt 0:06:07]} h4 {[%emt 0:02:19]} 31. Rc8+ {[%emt 0:01:30]} Ke7 {[%emt 0:03:11]} 32. Rc7+ {[%emt 0:00:40]} Ke8 {[%emt 0:01:10]} 33. f4 {[%emt 0:07:51]} g5 {[%emt 0:03:22]} 34. fxg5 {[%emt 0:02:47]} Rxb4 {[%emt 0:01:25]} 35. Rxc6 {[%emt 0:00:13]} Re4 {[%emt 0:00:05]} 36. g6 {[%emt 0:00:49]} fxg6 {[%emt 0:01:39]} 37. Rxe6+ {[%emt 0:00:18]} Kf7 {[%emt 0:00:04]} 38. Rf6+ {[%emt 0:00:27]} Kg7 {[%emt 0:00:17]} 39. Rb6 {[%emt 0:00:20]} Rxe3 {[%emt 0:04:36]} 40. Rxb5 {[%emt 0:01:27]} Rxh3 {[%emt 0:00:07]} 41. g5 {[%emt 0:00:20]} Rg3+ {[%emt 0:00:29]} 42. Kh2 {[%emt 0:00:01]} Kf7 {[%emt 0:03:30]} 43. Rb4 {[%emt 0:00:22]} Rxg5 {[%emt 0:00:11]} 44. Rxh4 {[%emt 0:00:09]} Rxe5 {[%emt 0:00:08]} 45. Ra4 {[%emt 0:00:14]} Kf6 {[%emt 0:00:13]} 46. Kg2 {[%emt 0:00:08]} Kf5 {[%emt 0:00:06]} 47. Kg3 {[%emt 0:00:09]} Re3+ {[%emt 0:00:10]} 48. Kf2 {[%emt 0:00:12]} Rd3 {[%emt 0:00:31]} 49. Kg2 {[%emt 0:00:06]} g5 {[%emt 0:00:21]} 50. Rb4 {[%emt 0:00:04]} Kg6 {[%emt 0:00:17]} 51. Ra4 {[%emt 0:00:17]} Kh5 {[%emt 0:00:06]} 52. Rb4 {[%emt 0:00:04]} Re3 {[%emt 0:02:52]} 53. Kf2 {[%emt 0:00:15]} Re5 {[%emt 0:00:24]} 54. Kg3 {[%emt 0:00:10]} Rc5 {[%emt 0:00:41]} 55. Ra4 {[%emt 0:00:14]} g4 {[%emt 0:00:09]} 56. Ra8 {[%emt 0:00:08]} Rc3+ {[%emt 0:00:06]} 57. Kg2 {[%emt 0:00:02]} Rc5 {[%emt 0:01:00]} 58. Kg3 {[%emt 0:00:07]} Rc3+ {[%emt 0:02:00]} 59. Kg2 {[%emt 0:00:02]} 1/2-1/2

[Event "1000GM Schev-G3 March 2024"]
[Site "Santa Clara"]
[Date "2024.03.10"]
[Round "4.5"]
[White "Dominguez Aguilar, Guillermo"]
[Black "Suarez, Sebastian"]
[Result "1-0"]
[ECO "B42"]
[WhiteElo "2284"]
[BlackElo "2113"]
[Annotator "TA"]
[PlyCount "63"]
[EventDate "2024.03.06"]
[EventType "schev"]
[EventCountry "USA"]
[SourceTitle "playchess.com"]
[Source "ChessBase"]
[SourceQuality "1"]
[TimeControl "5400+30"]

{[%evp 23,63,40,54,33,27,14,53,37,32,6,-4,0,0,-123,-29,-27,-48,-52,21,16,27,65,190,175,420,408,404,378,551,549,505,453,442,415,441,425,552,542,930,639,1090,1110]} 1. e4 {[%emt 0:00:30]} c5 {[%emt 0:01:51]} 2. Nf3 {[%emt 0:00:11]} e6 {[%emt 0:00:14]} 3. d4 {[%emt 0:00:40]} cxd4 {[%emt 0:00:11]} 4. Nxd4 {[%emt 0:00:03]} a6 {[%emt 0:00:10]} 5. Bd3 {[%emt 0:01:24]} Nf6 {[%emt 0:00:16]} 6. O-O {[%emt 0:00:11]} Qc7 {[%emt 0:00:51]} 7. Qe2 {[%emt 0:02:18]} d6 {[%emt 0:00:11]} 8. c4 {[%emt 0:03:32]} Be7 {[%emt 0:01:03]} 9. b3 {[%emt 0:00:13]} O-O {[%emt 0:01:32]} 10. Bb2 {[%emt 0:02:53]} Nbd7 {[%emt 0:00:17]} 11. Nc3 {[%emt 0:00:30]} b6 {[%emt 0:00:50]} 12. Rac1 {[%emt 0:00:32]} Bb7 {[%emt 0:00:34]} 13. Bb1 {[%emt 0:05:00]} Rfe8 {[%emt 0:01:41]} 14. f4 {[%emt 0:23:48]} Rad8 {[%emt 0:02:47]} 15. Kh1 {[%emt 0:56:15] Weiß steht etwas besser.} Bf8 {[%emt 0:02:32]} 16. Nf3 {[%emt 0:00:00]} g6 {[%emt 0:07:50]} 17. e5 {[%emt 0:00:00]} Nh5 {[%emt 0:00:33]} 18. Ng5 {[%emt 0:00:00]} (18. Ne4 $1 $11 {war der einzige Weg, das Gleichgewicht zu halten.}) 18... Bh6 {[%emt 0:28:19]} (18... dxe5 $17 {Droht stark ...Bh6.} 19. fxe5 Nxe5) 19. exd6 $11 {[%emt 0:00:00]} Qxd6 {[%emt 0:00:21]} 20. Rcd1 {[%emt 0:00:00]} Qc7 {[%emt 0:48:27]} ({Besser ist} 20... Qe7 $1 $15 21. Be4 Nxf4 22. Rxf4 Bxg5 (22... Qxg5 23. Rff1 $18)) 21. Nce4 $1 {[%emt 0:00:00]} (21. Nxh7 f5 (21... Nxf4 22. Rxd7 Rxd7 23. Nf6+ Kf8 24. Nce4 $11) 22. Ng5 (22. Nb5 $2 axb5 23. Ng5 Nxf4 $19) 22... Bxg5 (22... Nxf4 23. Rxf4 Bxg5 24. Rff1 $17) 23. fxg5 Nf4 24. Rxf4 Qxf4 $17) 21... Bxe4 {[%emt 0:00:00]} (21... Nxf4 $2 {verliert.} 22. Rxd7 Rxd7 23. Nf6+ Kf8 24. Nfxh7+ (24. Nxd7+ Ke7 $18) 24... Kg8 25. Nf6+ Kf8 26. Nxd7+ Ke7 27. Rd1 (27. Bf6+ Kxd7 28. Qd2+ Kc8 $18) 27... Bxg5 (27... Bxg2+ $2 28. Qxg2 Rc8 29. Ba3+ $18) 28. Ba3+ Kd8 29. Nxb6+ $18) 22. Nxe4 {[%emt 0:00:00] [#] Zielt auf g4 ab.} f5 {[%emt 0:00:00] Das kostet Schwarz die Partie.} (22... Bg7 $14) 23. Nd6 $36 {[%emt 0:00:00][%mdl 2048] Schwarz steht unter starkem Druck.} Bxf4 $2 {[%emt 0:00:00]} (23... Re7 {war nötig.}) 24. Nxe8 {[%emt 0:00:00]} Rxe8 {[%emt 0:00:00]} 25. Bxf5 {[%emt 0:00:00]} Nf8 {[%emt 0:00:00]} (25... Ne5 $142) 26. Bg4 {[%emt 0:00:00]} Ng7 {[%emt 0:00:00]} 27. g3 {[%emt 0:00:00]} Bd6 {[%emt 0:00:00]} 28. Qe4 {[%emt 0:00:00]} a5 {[%emt 0:00:00]} 29. Rd3 {[%emt 0:00:00] Weiß steht klar auf Gewinn.} ({Bloß nicht} 29. c5 Bxc5 30. Qc4 h5 $18) 29... h5 {[%emt 0:00:43]} 30. Bh3 {[%emt 0:00:00]} Qe7 {[%emt 0:03:01]} 31. Qc6 {[%emt 0:00:00]} Bc5 {[%emt 0:00:26]} 32. Bf6 {[%emt 0:00:00] Gewichteter Fehlerwert: Weiß=0.41/Schwarz=0.70.  Fehler:       	Weiß=1     	Schwarz=5     Ungenau:       	Weiß=2     	Schwarz=3     OK:         	Weiß=3     	Schwarz=5     Bester:       	Weiß=3     	Schwarz=1     Stark:        	Weiß=1     	---} 1-0

[Event "1000GM Schev-G3 March 2024"]
[Site "Santa Clara"]
[Date "2024.03.11"]
[Round "5.1"]
[White "Chinni, Rishabh"]
[Black "Gracia Alvarez, Gerardo Antonio"]
[Result "1/2-1/2"]
[ECO "C60"]
[WhiteElo "2010"]
[BlackElo "2233"]
[Annotator "TA"]
[PlyCount "41"]
[EventDate "2024.03.06"]
[EventType "schev"]
[EventCountry "USA"]
[SourceTitle "playchess.com"]
[Source "ChessBase"]
[SourceQuality "1"]
[TimeControl "5400+30"]

{[%evp 9,41,56,56,-27,-7,-16,0,-50,-41,-43,-49,-24,-45,-77,-36,-29,-39,-34,0,-7,0,0,4,0,0,0,0,0,0,0,1,0,2,0]} 1. e4 {[%emt 0:00:01]} e5 {[%emt 0:00:06]} 2. Nf3 {[%emt 0:00:04]} Nc6 {[%emt 0:00:03]} 3. Bb5 {[%emt 0:00:04]} Nge7 {[%emt 0:00:07]} 4. c3 {[%emt 0:00:28]} d5 {[%emt 0:00:04]} 5. Nxe5 {[%emt 0:03:26]} dxe4 {[%emt 0:00:08]} 6. d4 {[%emt 0:00:30]} (6. Qe2 $14) 6... exd3 $11 {[%emt 0:01:56] Hoping for ...Qd5.} 7. Nxc6 {[%emt 0:00:49]} (7. Qf3 {is interesting.} Be6 8. O-O Qd5 9. Qxd5 Bxd5 10. Nxc6 Bxc6 11. Bxd3 O-O-O 12. Bc4) 7... Nxc6 {[%emt 0:01:02]} 8. Qxd3 {[%emt 0:00:35]} (8. Bxd3 $11 Bg4 9. Qc2) 8... Qxd3 $15 {[%emt 0:02:06]} 9. Bxd3 {[%emt 0:00:01]} Be6 {[%emt 0:02:29]} 10. Bf4 {[%emt 0:03:22]} O-O-O {[%emt 0:00:27]} 11. Be4 {[%emt 0:03:26]} Bd5 {[%emt 0:04:18]} 12. Bxd5 {[%emt 0:03:16]} Rxd5 {[%emt 0:00:13]} 13. Nd2 {[%emt 0:00:39]} Bd6 {[%emt 0:09:46]} 14. Be3 {[%emt 0:03:24] The position is equal.} Re8 {[%emt 0:02:57]} 15. O-O-O {[%emt 0:01:36]} Bf8 {[%emt 0:02:28]} 16. Nf3 {[%emt 0:04:17]} Rxd1+ {[%emt 0:00:50]} 17. Rxd1 {[%emt 0:00:24]} Ne5 {[%emt 0:05:43]} 18. Nxe5 {[%emt 0:03:36]} (18. Bxa7 $2 {perishes.} Nxf3 19. gxf3 b6 $19) 18... Rxe5 {[%emt 0:00:18]} 19. Kc2 {[%emt 0:00:31]} (19. Bxa7 $2 {is the wrong capture.} b6 20. Rd2 Kb7 21. Bxb6 (21. Bb8 $2 Be7 $19) 21... Kxb6 $19 (21... Re1+ $2 22. Rd1 $19)) 19... Bc5 {[%emt 0:01:02]} 20. Bxc5 {[%emt 0:01:38]} Rxc5 {[%emt 0:00:06]} 21. Rd4 {[%emt 0:01:47] Weighted Error Value: White=0.19 (very precise) /Black=0.07 (flawless) .  Mistake:       	White=1     	---        Inaccurate:     	White=1     	Black=2      OK:         	White=5     	Black=5      Best:        	White=1     	Black=1} 1/2-1/2

[Event "1000GM Schev-G3 March 2024"]
[Site "Santa Clara"]
[Date "2024.03.11"]
[Round "5.2"]
[White "Heimann, Alexander"]
[Black "Penagalapati, Abhinav"]
[Result "1/2-1/2"]
[ECO "B63"]
[WhiteElo "2290"]
[BlackElo "2043"]
[Annotator "RC"]
[PlyCount "121"]
[EventDate "2024.03.06"]
[EventType "schev"]
[EventCountry "USA"]
[SourceTitle "playchess.com"]
[Source "ChessBase"]
[SourceQuality "1"]
[TimeControl "5400+30"]

1. e4 {[%emt 0:00:06]} c5 {[%emt 0:00:17]} 2. Nf3 {[%emt 0:00:06]} d6 {[%emt 0:00:04]} 3. d4 {[%emt 0:00:05]} cxd4 {[%emt 0:00:03]} 4. Nxd4 {[%emt 0:00:05]} Nf6 {[%emt 0:00:03]} 5. Nc3 {[%emt 0:00:04]} Nc6 {[%emt 0:00:03]} 6. Bg5 {[%emt 0:00:08]} e6 {[%emt 0:00:03]} 7. Qd2 {[%emt 0:00:08]} Qb6 {[%emt 0:00:06]} 8. Nb3 {[%emt 0:00:11]} Be7 {[%emt 0:00:06]} 9. O-O-O {[%emt 0:00:22]} O-O {[%emt 0:00:05]} 10. Be2 {[%emt 0:00:19]} Rd8 {[%emt 0:01:06]} 11. Be3 {[%emt 0:03:00]} Qc7 {[%emt 0:00:09]} 12. f4 {[%emt 0:00:10]} a6 {[%emt 0:00:31]} 13. Bf3 {[%emt 0:00:39]} b5 {[%emt 0:01:42]} 14. Qf2 {[%emt 0:00:25]} Nd7 {[%emt 0:01:44]} 15. h4 {[%emt 0:00:39]} Bb7 {[%emt 0:01:39]} 16. h5 {[%emt 0:01:05]} Bf6 {[%emt 0:09:43]} 17. g4 {[%emt 0:01:28]} Nb4 {[%emt 0:05:40]} 18. e5 {[%emt 0:02:41]} Bxf3 {[%emt 0:02:52]} 19. Qxf3 {[%emt 0:00:02]} dxe5 {[%emt 0:00:17]} 20. g5 {[%emt 0:00:11]} e4 {[%emt 0:00:18]} 21. Qxe4 {[%emt 1:29:06]} Bxc3 {[%emt 0:00:42]} 22. bxc3 {[%emt 0:00:00]} Nxa2+ {[%emt 0:00:15]} 23. Kb2 {[%emt 0:00:00]} Nxc3 {[%emt 0:00:15]} 24. Rxd7 {[%emt 0:00:00]} Qxd7 {[%emt 0:12:11]} 25. Kxc3 {[%emt 0:00:00]} Rac8+ {[%emt 0:01:02]} 26. Kb2 {[%emt 0:02:30]} Rc4 {[%emt 0:00:31]} 27. Qg2 {[%emt 0:00:00]} Rdc8 {[%emt 0:02:18]} 28. Rc1 {[%emt 0:00:00]} Qe7 {[%emt 0:00:14]} 29. Qd2 {[%emt 0:00:00]} Rd8 {[%emt 0:06:22]} 30. Qa5 {[%emt 0:00:00]} Ra4 {[%emt 0:01:04]} 31. Bc5 {[%emt 0:00:00]} Qd7 {[%emt 0:00:14]} 32. Qc3 {[%emt 0:00:00]} Rc4 {[%emt 0:08:11]} 33. Qe3 {[%emt 0:00:00]} Qd5 {[%emt 0:00:46]} 34. h6 {[%emt 0:00:00]} a5 {[%emt 0:03:23]} 35. Bb6 {[%emt 0:00:00]} Ra8 {[%emt 0:03:34]} 36. Bxa5 {[%emt 0:00:00]} b4 {[%emt 0:03:17]} 37. Qe5 {[%emt 0:00:00]} Qxe5+ {[%emt 0:00:10]} 38. fxe5 {[%emt 0:00:00]} Rg4 {[%emt 0:00:13]} 39. Rd1 {[%emt 0:00:00]} Rxg5 {[%emt 0:00:38]} 40. hxg7 {[%emt 0:00:00]} Rg4 {[%emt 0:05:24]} 41. Bd8 {[%emt 0:00:00]} Kxg7 {[%emt 0:00:11]} 42. Bf6+ {[%emt 0:00:00]} Kg6 {[%emt 0:01:45]} 43. Nc5 {[%emt 0:00:00]} Rc8 {[%emt 0:01:35]} 44. Nd3 {[%emt 0:00:00]} Rcc4 {[%emt 0:00:21]} 45. Ra1 {[%emt 0:00:00]} Rg2 {[%emt 0:00:34]} 46. Kb3 {[%emt 0:00:00]} Rc3+ {[%emt 0:03:25]} 47. Kxb4 {[%emt 0:00:00]} Rgxc2 {[%emt 0:00:02]} 48. Nf4+ {[%emt 0:00:00]} Kf5 {[%emt 0:00:21]} 49. Ne2 {[%emt 0:00:00]} Rd3 {[%emt 0:00:57]} 50. Rf1+ {[%emt 0:00:00]} Ke4 {[%emt 0:00:57]} 51. Nc1 {[%emt 0:00:00]} Rh3 {[%emt 0:02:46]} 52. Re1+ {[%emt 0:00:00]} Re3 {[%emt 0:05:16]} 53. Rh1 {[%emt 0:00:00]} Rb2+ {[%emt 0:00:35]} 54. Kc5 {[%emt 0:00:00]} Rc3+ {[%emt 0:04:53]} 55. Kd6 {[%emt 0:00:00]} Rbc2 {[%emt 0:02:59]} 56. Re1+ {[%emt 0:00:00]} Kf3 {[%emt 0:01:11]} 57. Bg5 {[%emt 0:00:00]} Kg4 {[%emt 0:01:05]} 58. Bh6 {[%emt 0:00:00]} Kh5 {[%emt 0:00:49]} 59. Bf4 {[%emt 0:00:00]} Rf3 {[%emt 0:02:36]} 60. Rh1+ {[%emt 0:00:00]} Kg6 {[%emt 0:00:52]} 61. Rg1+ {[%emt 0:00:00]} 1/2-1/2

[Event "1000GM Schev-G3 March 2024"]
[Site "Santa Clara"]
[Date "2024.03.11"]
[Round "5.3"]
[White "Zuluaga Mancilla, Cesar"]
[Black "Champsi, Imran"]
[Result "1-0"]
[ECO "A48"]
[WhiteElo "2217"]
[BlackElo "2057"]
[Annotator "RC"]
[PlyCount "113"]
[EventDate "2024.03.06"]
[EventType "schev"]
[EventCountry "USA"]
[SourceTitle "playchess.com"]
[Source "ChessBase"]
[SourceQuality "1"]
[TimeControl "5400+30"]

1. d4 {[%emt 0:08:30]} Nf6 {[%emt 0:00:28]} 2. Nf3 {[%emt 0:00:12]} g6 {[%emt 0:00:35]} 3. Bf4 {[%emt 0:01:25]} d6 {[%emt 0:00:50]} 4. h3 {[%emt 0:00:09]} Bg7 {[%emt 0:00:07]} 5. e3 {[%emt 0:00:06]} O-O {[%emt 0:01:40]} 6. Bh2 {[%emt 0:01:16]} Nbd7 {[%emt 0:01:33]} 7. Be2 {[%emt 0:02:41]} c5 {[%emt 0:01:36]} 8. c3 {[%emt 0:00:17]} a6 {[%emt 0:04:59]} 9. Nbd2 {[%emt 0:01:22]} b6 {[%emt 0:06:51]} 10. O-O {[%emt 0:00:36]} Bb7 {[%emt 0:00:42]} 11. Qb3 {[%emt 0:00:32]} Rb8 {[%emt 0:08:17]} 12. a4 {[%emt 0:00:09]} Ne8 {[%emt 0:03:16]} 13. d5 {[%emt 0:01:23]} Nc7 {[%emt 0:00:38]} 14. e4 {[%emt 0:02:27]} Kh8 {[%emt 0:01:08]} 15. c4 {[%emt 0:00:13]} f5 {[%emt 0:00:32]} 16. exf5 {[%emt 0:07:21]} Rxf5 {[%emt 0:00:26]} 17. Bd3 {[%emt 0:00:14]} Rf8 {[%emt 0:00:31]} 18. Qa2 {[%emt 0:03:08]} b5 {[%emt 0:00:42]} 19. b3 {[%emt 0:00:21]} Bxa1 {[%emt 0:05:55]} 20. Qxa1+ {[%emt 0:00:07]} Kg8 {[%emt 0:00:33]} 21. Re1 {[%emt 0:00:11]} Nf6 {[%emt 0:05:36]} 22. Bg3 {[%emt 0:04:08]} Bc8 {[%emt 0:05:06]} 23. axb5 {[%emt 0:00:55]} axb5 {[%emt 0:00:13]} 24. Bh4 {[%emt 0:01:39]} Nce8 {[%emt 0:07:16]} 25. Bg5 {[%emt 0:01:09]} Ng7 {[%emt 0:01:32]} 26. Bh6 {[%emt 0:03:18]} Re8 {[%emt 0:06:52]} 27. Ne4 {[%emt 0:01:41]} bxc4 {[%emt 0:07:47]} 28. bxc4 {[%emt 0:08:27]} Rb7 {[%emt 0:03:19]} 29. g4 {[%emt 0:02:33]} Rf8 {[%emt 0:05:41]} 30. Nfg5 {[%emt 0:02:38]} Qb6 {[%emt 0:08:28]} 31. f4 {[%emt 0:11:56]} Ra7 {[%emt 0:03:43]} 32. Qc1 {[%emt 0:03:55]} Qb3 {[%emt 0:02:44]} 33. Qe3 {[%emt 0:02:45]} Qb2 {[%emt 0:03:42]} 34. Re2 {[%emt 0:05:46]} Qa1+ {[%emt 0:01:00]} 35. Re1 {[%emt 0:03:51]} Qb2 {[%emt 0:00:44]} 36. Nf2 {[%emt 0:02:31]} Re8 {[%emt 0:01:16]} 37. Nfe4 {[%emt 0:04:21]} Nxe4 {[%emt 0:00:30]} 38. Nxe4 {[%emt 0:00:31]} Rf8 {[%emt 0:01:09]} 39. Ng5 {[%emt 0:01:08]} Qf6 {[%emt 0:01:09]} 40. Ne4 {[%emt 0:02:18]} Qd4 {[%emt 0:00:40]} 41. Qxd4 {[%emt 0:01:03]} cxd4 {[%emt 0:00:02]} 42. Nf2 {[%emt 0:00:20]} Rf7 {[%emt 0:01:42]} 43. Rb1 {[%emt 0:04:39]} Rb7 {[%emt 0:00:00]} 44. Ra1 {[%emt 0:00:05]} Rb8 {[%emt 0:00:00]} 45. Re1 {[%emt 0:00:27]} Ne8 {[%emt 0:00:29]} 46. Re4 {[%emt 0:01:02]} Nc7 {[%emt 0:00:38]} 47. Rxd4 {[%emt 0:00:38]} Rb6 {[%emt 0:00:39]} 48. Re4 {[%emt 0:03:26]} e6 {[%emt 0:00:12]} 49. Re1 {[%emt 0:02:44]} exd5 {[%emt 0:00:56]} 50. cxd5 {[%emt 0:00:01]} Bd7 {[%emt 0:00:33]} 51. Ra1 {[%emt 0:00:42]} Re7 {[%emt 0:00:24]} 52. Ne4 {[%emt 0:00:54]} Nxd5 {[%emt 0:00:36]} 53. Bc4 {[%emt 0:00:10]} Rxe4 {[%emt 0:01:03]} 54. Bxd5+ Re6 {[%emt 0:00:30]} 55. f5 {[%emt 0:03:39]} gxf5 {[%emt 0:00:30]} 56. gxf5 {[%emt 0:00:30]} Kf7 57. Ra7 {[%emt 0:00:30]} 1-0

[Event "1000GM Schev-G3 March 2024"]
[Site "Santa Clara"]
[Date "2024.03.11"]
[Round "5.4"]
[White "Liu, Patrick"]
[Black "Dominguez Aguilar, Guillermo"]
[Result "1/2-1/2"]
[ECO "A75"]
[WhiteElo "2068"]
[BlackElo "2284"]
[Annotator "TA"]
[PlyCount "65"]
[EventDate "2024.03.06"]
[EventType "schev"]
[EventCountry "USA"]
[SourceTitle "playchess.com"]
[Source "ChessBase"]
[SourceQuality "1"]
[TimeControl "5400+30"]

{[%evp 24,65,58,47,46,41,57,52,52,45,66,31,30,29,62,63,133,127,149,150,143,133,131,120,158,125,144,60,88,33,25,22,20,57,108,74,55,23,29,0,0,0,0,0]} 1. d4 {[%emt 0:00:02]} Nf6 {[%emt 0:00:42]} 2. c4 {[%emt 0:00:08]} c5 {[%emt 0:00:48]} 3. d5 {[%emt 0:00:02]} e6 {[%emt 0:00:14]} 4. Nc3 {[%emt 0:00:03]} exd5 {[%emt 0:00:12]} 5. cxd5 {[%emt 0:00:03]} d6 {[%emt 0:00:07]} 6. e4 {[%emt 0:00:09]} a6 {[%emt 0:00:12]} 7. a4 {[%emt 0:00:06]} g6 {[%emt 0:00:09]} 8. Be2 {[%emt 0:00:11]} Bg7 {[%emt 0:00:09]} 9. Nf3 {[%emt 0:00:31]} O-O {[%emt 0:00:28]} 10. Be3 {[%emt 0:00:28]} Bg4 {[%emt 0:00:36]} 11. Nd2 {[%emt 0:00:10]} Bxe2 {[%emt 0:00:16]} 12. Qxe2 {[%emt 0:00:06]} Re8 {[%emt 0:00:09]} 13. O-O {[%emt 0:01:28]} Nbd7 {[%emt 0:01:47]} 14. h3 {[%emt 0:01:46]} Qe7 {[%emt 0:11:58]} 15. Rae1 {[%emt 0:02:04]} Rab8 {[%emt 0:03:22] White is slightly better.} 16. a5 {[%emt 0:00:53]} Qf8 {[%emt 0:02:00]} 17. g4 {[%emt 0:08:54]} b5 {[%emt 0:00:49]} 18. axb6 {[%emt 0:02:03]} Rxb6 {[%emt 0:00:24]} 19. Nc4 {[%emt 0:01:28]} Rb4 {[%emt 0:00:31]} (19... Rb3 $14) 20. Bf4 $16 {[%emt 0:00:45]} Ne5 {[%emt 0:02:27]} 21. Bxe5 {[%emt 0:06:17]} dxe5 {[%emt 0:00:02]} 22. Ra1 {[%emt 0:00:26]} h5 {[%emt 0:00:57]} 23. f3 {[%emt 0:00:41]} hxg4 {[%emt 0:01:02]} 24. hxg4 {[%emt 1:13:46][%cal Og1g2]} Ra8 {[%emt 0:00:12]} 25. Ra5 {[%emt 0:00:00]} ({Inferior is} 25. Nxe5 Nxe4 26. Nc6 Nxc3 27. bxc3 (27. Ne7+ Qxe7 28. Qxe7 Bd4+ 29. Kg2 Nxd5 $11) 27... Bxc3 $15) (25. Na5 $16) 25... Nd7 {[%emt 0:02:06]} 26. Rfa1 {[%emt 0:00:00]} (26. Na2 $16 Rb5 27. Ra3) 26... Qd8 $14 {[%emt 0:01:14]} 27. Rxa6 {[%emt 0:00:00]} Rxa6 {[%emt 0:00:32]} 28. Rxa6 {[%emt 0:00:00]} Qh4 {[%emt 0:00:50] Black is weak on the light squares} (28... Bh6 $14) 29. Ra8+ {[%emt 0:00:00]} Nf8 {[%emt 0:01:41]} 30. Kg2 {[%emt 0:00:00] Dodges Qg3+. Strongly threatening Na2.} Bh6 $1 {[%emt 0:00:25]} 31. Ra4 {[%emt 0:00:00] Qf2 would now be deadly. Active counter play!} (31. Na2 $5 Rxc4 32. Qxc4 $11) 31... Bf4 {[%emt 0:03:45] [#] White must now prevent ...Bg3.} 32. Rxb4 {[%emt 0:00:00]} Qh2+ {[%emt 0:01:48]} 33. Kf1 {[%emt 0:00:00] Black escapes into a draw.   Weighted Error Value: White=0.19 (very precise) /Black=0.15 (very precise) .  Mistake:       	White=2     	Black=2      Inaccurate:     	White=4     	Black=3      OK:         	White=5     	Black=5      Best:        	White=2     	Black=1      Strong:       	---       	Black=1} 1/2-1/2